bitfinex/quotes_ETHUSD_20240614
["timestamp","ask_amount","ask_price","bid_price","bid_amount"]
[1718345285362,0.0567294,3514.6,3513.8,2.4154]
[1718345285562,0.7557294,3514.6,3513.8,2.4154]
[1718345289985,2.3068,3515.1,3514.1,0.699]
[1718345290132,2.3068,3515.1,3514.2,2.30970608]
[1718345290133,0.7557294,3515.0,3514.2,2.30970608]
[1718345290333,0.7557294,3515.0,3514.2,2.7539212]
[1718345290533,0.699,3514.8,3514.2,2.69701512]
[1718345291170,0.699,3514.8,3513.8,2.407]
[1718345291389,0.699,3514.6,3514.3,0.13883885]
[1718345291596,0.0567294,3514.5,3513.9,2.3594]
[1718345291749,2.3476,3515.2,3514.4,2.40857244]
[1718345291953,0.0567294,3515.1,3514.4,2.2698]
[1718345292382,0.0567294,3515.1,3514.5,0.13870603]
[1718345292553,2.3476,3515.2,3514.5,0.13870603]
[1718345292757,5.71186148,3515.5,3514.5,0.89461176]
[1718345293064,0.0567294,3515.4,3514.5,0.89461176]
[1718345293282,0.0567294,3515.4,3514.5,0.75590573]
[1718345293656,0.7557294,3515.4,3514.5,0.75590573]
[1718345294174,0.7557294,3515.4,3514.5,1.0584763]
[1718345297004,3.90386552,3515.8,3514.5,1.0584763]
[1718345297005,6.32456552,3515.8,3514.9,0.699]
[1718345297153,0.0567294,3515.7,3514.9,0.699]
[1718345297352,0.0567294,3515.7,3515.0,0.13834631]
[1718345297605,0.7557294,3515.7,3515.0,0.13834631]
[1718345299549,0.7557294,3515.7,3514.7,0.699]
[1718345299690,0.7557294,3515.7,3515.1,0.13827992]
[1718345300039,0.7557294,3515.7,3514.7,1.34597124]
[1718345300235,0.0567294,3515.7,3515.2,0.13821354]
[1718345300537,0.7557294,3515.7,3515.3,0.13814716]
[1718345300738,0.7557294,3515.7,3514.7,1.34597124]
[1718345300903,0.7557294,3515.7,3515.4,0.13808078]
[1718345301228,0.699,3515.5,3514.4,2.2698]
[1718345301435,0.699,3515.0,3514.1,2.44]
[1718345301731,0.699,3515.0,3514.2,0.05690619]
[1718345302027,0.699,3515.0,3514.2,0.19578373]
[1718345302234,0.699,3515.0,3514.2,0.5598461]
[1718345302403,0.0567294,3515.0,3514.2,0.5598461]
[1718345302614,0.0567294,3515.3,3514.4,2.358]
[1718345302937,0.0567294,3515.3,3514.5,0.19557937]
[1718345310323,0.699,3515.2,3514.5,0.1386783]
[1718345310527,0.35986234,3515.1,3514.5,0.1386783]
[1718345312832,2.3967,3514.9,3514.5,0.1386783]
[1718345313148,0.0567294,3514.8,3514.1,2.2684]
[1718345313301,0.0567294,3514.8,3514.6,0.13856261]
[1718345313502,0.0567294,3514.8,3514.1,2.2684]
[1718345313726,0.0567294,3514.8,3514.2,0.13882826]
[1718345314115,2.3967,3514.9,3514.2,0.13882826]
[1718345316652,0.7557294,3514.8,3514.2,0.13882826]
[1718345317159,2.70627,3514.9,3514.2,0.13882826]
[1718345317379,3.40527,3514.9,3514.2,0.13882826]
[1718345319339,3.0957,3514.9,3514.2,0.13882826]
[1718345320449,0.699,3514.9,3514.2,0.13882826]
[1718345320766,0.699,3514.9,3514.3,0.05690602]
[1718345321065,0.699,3515.2,3514.4,2.5061618]
[1718345321359,1.31606,3515.2,3514.4,2.5061618]
[1718345321583,0.699,3515.2,3514.4,2.5061618]
[1718345321960,0.0567294,3515.1,3514.4,2.5061618]
[1718345322646,0.699,3515.0,3514.4,2.5061618]
[1718345322852,3.23826148,3515.6,3514.6,2.3169]
[1718345323093,0.0567294,3515.5,3514.7,0.89455979]
[1718345323298,0.0567294,3515.5,3514.7,0.83085028]
[1718345323460,0.699,3515.4,3514.7,0.83085028]
[1718345323781,0.699,3515.4,3514.7,0.77395307]
[1718345325985,0.699,3515.4,3514.8,0.05689654]
[1718345326185,0.0567294,3515.5,3514.9,2.4282]
[1718345326388,0.699,3515.4,3514.9,2.56661579]
[1718345327295,2.3824,3516.1,3515.0,0.05689651]
[1718345327493,0.699,3515.7,3515.1,0.13828302]
[1718345327788,0.699,3515.7,3515.1,0.43209847]
[1718345328290,0.0567294,3515.6,3515.1,0.43209847]
[1718345328473,0.699,3515.3,3515.1,0.13828302]
[1718345328785,0.699,3515.3,3514.9,2.4282]
[1718345329009,0.699,3515.3,3515.2,0.13810575]
[1718345329156,0.699,3515.3,3514.9,2.4282]
[1718345329362,0.699,3515.3,3515.0,0.13818]
[1718345329662,0.699,3515.4,3515.0,0.13818]
[1718345330090,0.0567294,3515.3,3515.0,0.13818]
[1718345331391,0.699,3515.5,3515.0,0.13818]
[1718345331970,0.699,3515.3,3515.0,0.13818]
[1718345332172,0.0567294,3515.8,3515.0,0.13818]
[1718345332406,2.4761,3515.9,3515.0,0.13818]
[1718345332407,0.699,3515.6,3515.0,0.13818]
[1718345333090,0.699,3515.7,3515.1,2.268]
[1718345333300,0.699,3515.7,3515.2,0.13784081]
[1718345335470,0.7,3515.7,3515.2,0.13784081]
[1718345336307,0.7,3515.5,3515.2,0.13784081]
[1718345336512,2.5084294,3516.2,3515.2,0.13784081]
[1718345336513,0.7,3515.7,3515.2,0.13784081]
[1718345337078,2.5084294,3516.2,3515.2,0.13784081]
[1718345337293,0.7,3515.8,3515.2,0.13784081]
[1718345339227,0.0567294,3515.7,3515.2,0.13784081]
[1718345339448,0.7,3515.3,3515.2,0.13784081]
[1718345339778,0.7,3515.3,3514.5,1.708]
[1718345340003,0.7,3515.3,3515.2,0.13309536]
[1718345340216,0.7,3515.3,3514.5,3.14144514]
[1718345340423,0.7,3515.3,3515.2,0.13309536]
[1718345340719,0.7,3515.3,3514.5,3.14144514]
[1718345340892,0.7,3515.3,3515.2,0.13309843]
[1718345341224,0.7,3515.3,3514.5,3.14144514]
[1718345341390,0.7,3515.3,3515.2,0.13309843]
[1718345341622,0.7,3515.3,3514.5,3.14144514]
[1718345341833,0.7,3515.3,3515.2,0.13323644]
[1718345342238,0.7,3515.3,3514.5,3.14144514]
[1718345342403,0.7,3515.3,3515.2,0.13323644]
[1718345343055,2.3092,3515.2,3514.4,2.2644]
[1718345343202,0.7,3514.9,3514.4,2.2644]
[1718345343406,0.7,3514.9,3514.5,0.1337012]
[1718345343605,1.06332234,3515.1,3514.5,0.1337012]
[1718345343863,1.06332234,3515.1,3514.4,2.2644]
[1718345344071,1.06332234,3515.1,3514.5,0.1337012]
[1718345345077,0.7,3515.1,3514.5,0.19060536]
[1718345345239,0.7,3515.3,3514.5,0.19060536]
[1718345346073,3.23826148,3515.6,3514.7,2.4887]
[1718345346240,0.7,3515.4,3514.8,0.0568943]
[1718345346442,0.7,3515.4,3514.8,0.13358789]
[1718345346785,0.7,3515.4,3514.7,3.92214514]
[1718345346940,0.7,3515.4,3514.7,4.31435965]
[1718345347134,0.7,3515.4,3514.8,0.13358789]
[1718345347784,0.7,3515.2,3514.8,0.13358789]
[1718345348271,0.7,3515.2,3514.9,0.1335215]
[1718345348472,0.7,3515.2,3514.7,4.31435965]
[1718345348652,0.7,3515.4,3514.8,0.43143597]
[1718345348973,0.7,3515.4,3514.9,0.1335215]
[1718345349642,0.7,3515.4,3514.8,0.43143597]
[1718345349837,0.7,3515.4,3514.9,0.1335215]
[1718345350303,0.7,3515.2,3514.9,0.1335215]
[1718345350573,0.84567294,3515.2,3515.0,0.13347041]
[1718345350764,0.84567294,3515.2,3514.5,0.05690106]
[1718345350958,0.84567294,3515.2,3515.1,0.13340402]
[1718345351174,0.84567294,3515.2,3514.5,0.05690106]
[1718345351347,0.84567294,3515.2,3515.1,0.13340402]
[1718345351592,0.84567294,3515.2,3514.5,0.05690106]
[1718345351751,0.90240234,3515.2,3515.1,0.13340402]
[1718345351955,0.90240234,3515.2,3514.4,2.3039]
[1718345352184,0.7,3514.9,3514.4,2.3039]
[1718345352385,0.7,3515.1,3514.4,2.3039]
[1718345352686,0.7567294,3515.1,3514.4,2.3039]
[1718345355188,2.3728,3515.8,3514.4,2.3039]
[1718345355479,0.7,3515.1,3514.4,2.3039]
[1718345357079,2.4495,3515.5,3514.5,0.05690358]
[1718345357278,0.0567294,3515.4,3514.6,2.4715]
[1718345357465,0.7,3515.3,3514.6,2.4715]
[1718345357672,0.7,3515.3,3514.7,0.13372174]
[1718345362681,0.7,3515.1,3514.7,0.13372174]
[1718345368308,0.0567294,3515.0,3514.7,0.13372174]
[1718345368588,0.7,3514.8,3514.7,0.13372174]
[1718345368799,0.7,3514.8,3514.3,2.3748]
[1718345369099,0.7,3514.8,3514.7,0.13367266]
[1718345369251,1.00149294,3514.8,3514.4,0.13387188]
[1718345369454,0.7,3514.8,3514.4,0.13387188]
[1718345374308,0.7,3515.0,3514.4,0.13387188]
[1718345374497,0.7,3515.0,3514.3,2.3748]
[1718345382091,0.0567294,3514.9,3514.3,2.3748]
[1718345382412,0.7,3515.0,3514.3,2.3748]
[1718345382613,0.7,3514.8,3514.3,2.3748]
[1718345382988,0.7,3514.8,3514.4,0.13394244]
[1718345386831,0.7,3514.8,3514.3,2.3748]
[1718345387238,0.7,3514.8,3514.4,0.13393631]
[1718345387606,0.7,3514.8,3514.3,2.3748]
[1718345387937,0.7,3514.8,3514.4,0.13393631]
[1718345388234,1.02504294,3514.8,3514.3,2.3748]
[1718345388539,0.0567294,3514.7,3514.4,0.13393631]
[1718345389725,0.7,3514.6,3514.1,2.334]
[1718345389928,0.7,3514.6,3514.5,0.1338699]
[1718345390128,0.7,3514.6,3514.1,2.334]
[1718345390320,0.7,3514.6,3514.5,0.1338699]
[1718345390649,0.7,3514.6,3514.1,2.334]
[1718345390874,0.7,3514.6,3514.5,0.1338699]
[1718345391015,0.7,3514.6,3514.1,2.334]
[1718345391216,0.7,3514.6,3514.5,0.1338699]
[1718345391454,0.7,3514.6,3514.1,2.334]
[1718345391656,0.7,3514.6,3514.5,0.1338699]
[1718345391859,0.7,3514.6,3514.1,2.334]
[1718345392060,0.7,3514.6,3514.5,0.1338699]
[1718345392260,0.7,3514.6,3514.1,2.334]
[1718345392465,0.7,3514.6,3514.5,0.1338699]
[1718345392655,0.7,3514.6,3514.1,2.334]
[1718345392854,0.7,3514.6,3514.5,0.1338699]
[1718345393345,0.7,3514.6,3514.1,2.334]
[1718345393931,0.7,3514.6,3514.2,0.13406914]
[1718345401205,2.2668,3515.4,3514.2,0.13406914]
[1718345401503,0.7,3514.9,3514.3,0.05690608]
[1718345401702,0.7,3514.9,3514.4,2.3166]
[1718345402105,0.7,3514.9,3514.5,0.13404473]
[1718345402514,0.7,3514.9,3514.4,2.3166]
[1718345402733,0.7,3514.9,3514.6,0.13397833]
[1718345402936,0.7,3514.9,3514.5,0.13404473]
[1718345403300,0.7,3514.9,3514.4,2.3166]
[1718345403499,0.7,3514.9,3514.6,0.13397833]
[1718345403811,0.7,3514.9,3514.7,0.13391193]
[1718345404126,0.7,3514.9,3514.4,2.3166]
[1718345404315,0.7,3514.9,3514.8,0.13384553]
[1718345404515,0.7,3514.9,3514.4,2.3166]
[1718345404899,0.7,3514.9,3514.5,0.13404473]
[1718345405334,0.7,3514.9,3514.4,2.3166]
[1718345405643,0.7,3514.9,3514.6,0.13397833]
[1718345405859,0.7,3514.9,3514.5,0.13404473]
[1718345406205,0.7,3514.9,3514.4,2.3166]
[1718345406399,0.7,3514.9,3514.5,0.13404473]
[1718345406721,0.0567294,3515.2,3514.4,2.3166]
[1718345406913,0.7,3514.9,3514.6,0.13397833]
[1718345407221,0.7,3514.9,3514.7,0.13391193]
[1718345407424,0.7,3514.9,3514.4,2.3166]
[1718345407632,0.7,3514.9,3514.5,0.13404473]
[1718345407805,0.7,3514.9,3514.4,2.3166]
[1718345408145,0.7,3514.9,3514.5,0.13404473]
[1718345408510,0.7,3514.9,3514.4,2.3166]
[1718345408704,0.0567294,3515.3,3514.6,0.13397833]
[1718345408978,0.7,3515.1,3514.6,0.13397833]
[1718345409252,0.7,3515.1,3514.7,0.13391193]
[1718345409745,0.7,3515.1,3514.4,2.54826]
[1718345409931,0.7,3514.9,3514.8,0.13384553]
[1718345410131,0.7,3514.9,3514.4,2.3166]
[1718345410458,0.7,3514.9,3514.5,0.13393737]
[1718345410952,0.7,3514.9,3514.4,2.3166]
[1718345411155,0.7,3514.9,3514.6,0.13387096]
[1718345411308,0.7,3514.9,3514.5,0.13393737]
[1718345411508,0.7,3514.9,3514.7,0.13380456]
[1718345411826,0.7,3514.9,3514.4,2.3166]
[1718345411827,0.7,3514.9,3514.8,0.13373816]
[1718345412138,0.7,3514.9,3514.4,2.3166]
[1718345412344,0.7,3514.9,3514.8,0.13373816]
[1718345412525,0.7,3514.9,3514.4,2.3166]
[1718345413344,0.7,3514.9,3514.5,0.13393737]
[1718345413843,0.7,3514.9,3514.6,0.13387096]
[1718345414019,0.7,3514.9,3514.4,2.3166]
[1718345414202,0.7,3514.9,3514.5,0.13393737]
[1718345414403,0.7,3514.9,3514.4,2.54826]
[1718345414609,0.7,3514.9,3514.5,0.13393737]
[1718345414831,0.7,3514.9,3514.4,2.3166]
[1718345415005,0.7,3514.9,3514.5,0.13393737]
[1718345415204,0.7,3514.9,3514.2,2.2742]
[1718345415443,0.7,3514.9,3514.3,0.13399042]
[1718345417542,0.7567294,3514.9,3514.3,0.13399042]
[1718345419620,0.7,3514.9,3514.3,0.13399042]
[1718345426368,0.7,3514.9,3514.3,0.19089433]
[1718345426870,2.2621,3515.0,3514.3,0.19089433]
[1718345427076,2.2621,3515.0,3514.3,0.55422576]
[1718345428069,3.23826148,3515.5,3514.4,2.13344514]
[1718345428246,6.31386552,3515.8,3514.5,2.58780819]
[1718345428570,0.7,3515.5,3514.6,2.3793]
[1718345428736,0.7,3515.5,3514.7,0.05689547]
[1718345428938,0.7,3515.5,3514.8,0.05689531]
[1718345429269,0.7,3515.3,3514.9,0.13364722]
[1718345432875,0.0567294,3515.7,3514.9,0.13364722]
[1718345433249,0.7,3515.4,3514.9,0.13364722]
[1718345436877,0.0567294,3515.7,3514.9,0.13364722]
[1718345437079,0.7,3515.5,3514.9,0.13364722]
[1718345439587,0.7,3515.3,3514.9,0.13364722]
[1718345439954,0.7,3515.3,3514.6,2.88598848]
[1718345440190,0.7,3515.3,3515.0,0.15726131]
[1718345440394,0.7,3515.3,3514.7,0.55883859]
[1718345440690,0.7,3515.3,3515.1,0.15719425]
[1718345440864,0.7,3515.3,3514.7,0.55883859]
[1718345441061,0.7,3515.3,3514.8,0.2142907]
[1718345441265,0.7,3515.3,3514.8,0.66718862]
[1718345441589,0.7,3515.5,3514.8,0.66718862]
[1718345445183,0.7,3515.5,3514.6,0.74648862]
[1718345445497,0.7,3515.5,3514.7,0.05689525]
[1718345445790,0.7,3515.5,3514.8,0.15216428]
[1718345446195,0.7,3515.5,3514.7,0.05689525]
[1718345446493,0.7,3515.5,3514.8,0.15216428]
[1718345446669,0.7,3515.3,3514.8,0.15216428]
[1718345446863,0.77112533,3515.3,3514.4,0.05690027]
[1718345447069,0.77112533,3515.3,3514.5,0.15236553]
[1718345448262,0.77112533,3515.3,3514.6,2.4065]
[1718345448595,0.77112533,3515.3,3514.7,0.15223136]
[1718345452593,2.9663,3515.4,3514.8,0.05690024]
[1718345452899,2.9663,3515.4,3514.9,0.15216467]
[1718345453100,2.9663,3515.4,3514.6,2.73807658]
[1718345453274,2.9663,3515.4,3514.7,0.42610649]
[1718345454859,0.07112024,3515.3,3514.7,0.15229883]
[1718345455177,3.0628,3514.9,3513.9,2.98362601]
[1718345455537,3.0628,3514.9,3513.9,4.52434514]
[1718345455538,0.07113122,3514.8,3513.9,4.52434514]
[1718345455817,0.07113122,3514.8,3514.0,1.49743451]
[1718345455973,0.7,3514.7,3514.0,1.49743451]
[1718345456165,0.77113445,3514.7,3514.0,1.49743451]
[1718345456365,0.77113445,3514.7,3514.1,0.15278419]
[1718345456664,0.77113445,3514.7,3513.9,2.3909]
[1718345456893,0.77113445,3514.7,3514.0,0.1528513]
[1718345457290,0.7,3514.7,3514.0,0.1528513]
[1718345457470,0.77113444,3514.7,3514.0,0.1528513]
[1718345457677,0.7,3514.7,3514.0,0.05690755]
[1718345457862,0.07113444,3514.8,3514.1,0.15278419]
[1718345458067,0.7,3514.7,3514.1,0.15278419]
[1718345459666,0.7,3514.7,3513.8,0.05690928]
[1718345459866,0.7,3514.7,3513.9,0.45598934]
[1718345460109,0.7,3514.7,3514.0,0.05690927]
[1718345460290,0.7,3514.7,3514.1,0.15278419]
[1718345460865,0.07113444,3514.8,3514.1,0.15278419]
[1718345461088,0.77113444,3514.8,3514.1,0.15278419]
[1718345462065,0.7,3514.6,3514.1,0.15278419]
[1718345463400,0.77113662,3514.6,3514.1,0.15278419]
[1718345463603,2.3885,3514.5,3514.1,0.15278419]
[1718345463918,2.3885,3514.5,3514.2,0.15268083]
[1718345464283,2.3885,3514.5,3513.8,0.0569122]
[1718345464470,2.3885,3514.5,3513.9,0.15288215]
[1718345469878,2.3885,3514.5,3513.6,0.0569123]
[1718345470077,2.3885,3514.5,3513.7,0.15317591]
[1718345470280,2.3885,3514.5,3513.8,0.05691218]
[1718345470481,2.3885,3514.5,3513.9,0.15304168]
[1718345470880,2.2465,3514.5,3513.9,0.15304168]
[1718345473192,0.7,3514.6,3513.9,0.15304168]
[1718345473538,0.07114073,3515.1,3513.9,0.53593844]
[1718345473739,0.7,3514.7,3513.9,0.53593844]
[1718345474020,0.7,3514.7,3513.9,0.38289676]
[1718345474229,0.7,3514.7,3514.0,0.15297457]
[1718345474381,0.7,3514.7,3514.1,0.29426713]
[1718345474826,0.7,3514.7,3514.2,0.15284036]
[1718345475223,0.7,3514.7,3514.0,0.05690758]
[1718345475436,3.23826148,3515.2,3514.1,1.43344514]
[1718345475578,2.3684,3515.1,3514.2,2.3947008]
[1718345475889,2.3684,3515.1,3514.3,0.66263897]
[1718345476099,0.7,3515.0,3514.3,0.66263897]
[1718345480906,3.10992607,3515.0,3514.3,0.60573817]
[1718345481102,3.10992607,3515.0,3514.3,0.15292358]
[1718345481921,2.40992607,3515.0,3514.3,0.15292358]
[1718345482126,2.4348,3515.6,3514.5,0.7]
[1718345482313,3.1348,3515.6,3514.7,2.4307]
[1718345482615,0.7,3515.4,3514.8,0.20931553]
[1718345483500,0.7,3515.4,3514.8,0.15241942]
[1718345486415,0.7,3515.4,3514.8,0.45847111]
[1718345487887,0.7,3515.4,3514.8,0.51536657]
[1718345488672,0.07112013,3515.5,3514.8,0.51536657]
[1718345488872,0.7,3515.4,3514.8,0.51536657]
[1718345490764,0.07112013,3515.5,3514.8,0.51536657]
[1718345491004,2.3573,3515.9,3515.0,2.2767]
[1718345491166,0.7,3515.6,3515.0,2.2767]
[1718345491506,0.7,3515.6,3515.1,0.1522182]
[1718345493077,0.7,3515.6,3514.8,2.3318]
[1718345493266,0.7,3515.6,3514.9,0.51231867]
[1718345506284,0.7,3515.6,3514.9,0.20913867]
[1718345507830,2.3059,3516.2,3515.0,2.2523]
[1718345508023,0.7,3516.0,3515.2,2.4106]
[1718345508331,0.7,3516.0,3515.3,0.14671911]
[1718345508725,0.07111229,3515.9,3515.3,0.14671911]
[1718345510755,0.7,3515.8,3515.3,0.14671911]
[1718345519344,2.701549,3515.8,3515.3,0.14671911]
[1718345521013,2.001549,3515.8,3515.5,2.4149]
[1718345521215,2.001549,3515.8,3515.6,0.05688174]
[1718345521527,2.001549,3515.8,3515.6,0.20325014]
[1718345521723,2.001549,3515.8,3515.7,2.4149]
[1718345521923,2.001549,3515.8,3515.7,2.56116473]
[1718345522135,2.001549,3515.8,3515.7,3.03062572]
[1718345531866,2.001549,3515.8,3515.7,3.01902572]
[1718345532074,2.001549,3515.8,3515.7,4.45247086]
[1718345540188,2.001549,3515.8,3515.7,6.16047086]
[1718345545066,2.001549,3515.8,3515.7,6.85947086]
[1718345545896,2.001549,3515.8,3515.7,11.00219687]
[1718345546273,2.001549,3515.8,3515.7,10.40947086]
[1718345546676,2.001549,3515.8,3515.7,11.00146496]
[1718345547068,2.001549,3515.8,3515.7,10.40947086]
[1718345547596,2.001549,3515.8,3515.7,13.84579914]
[1718345547770,2.001549,3515.8,3515.7,16.41533062]
[1718345547976,2.001549,3515.8,3515.7,15.9798786]
[1718345548201,2.001549,3515.8,3515.7,17.16533062]
[1718345548391,2.001549,3515.8,3515.7,15.9798786]
[1718345548586,2.001549,3515.8,3515.7,15.2298786]
[1718345549404,2.001549,3515.8,3515.7,16.11719477]
[1718345549609,2.001549,3515.8,3515.7,16.86719477]
[1718345549911,2.001549,3515.8,3515.7,15.9798786]
[1718345550263,2.001549,3515.8,3515.7,16.11707441]
[1718345551308,2.2865,3518.0,3516.1,1.708]
[1718345551473,2.2865,3518.0,3517.5,0.699]
[1718345551666,2.2865,3518.0,3517.6,0.05685098]
[1718345551866,2.2865,3518.0,3517.6,0.20099745]
[1718345554368,2.2865,3518.0,3517.6,0.14414647]
[1718345554571,2.299,3518.4,3517.6,1.43344514]
[1718345554768,2.299,3518.4,3517.7,0.14389351]
[1718345555091,2.55335713,3518.3,3517.7,0.14389351]
[1718345555598,0.699,3518.2,3517.2,0.699]
[1718345555798,2.55336563,3518.1,3517.2,2.13244514]
[1718345555991,2.55336563,3518.1,3517.3,0.14416141]
[1718345557499,0.07106563,3518.1,3517.3,0.14416141]
[1718345557699,2.4576,3518.5,3518.0,0.699]
[1718345558000,2.4576,3518.5,3517.4,5.47274514]
[1718345558001,2.4576,3518.5,3518.1,0.14361348]
[1718345558220,2.4576,3518.5,3517.8,0.699]
[1718345558423,2.4576,3518.5,3518.2,0.14354043]
[1718345558723,2.4576,3518.5,3517.8,2.13244514]
[1718345558931,2.4576,3518.5,3518.3,0.14347348]
[1718345559277,2.4576,3518.5,3517.8,2.13244514]
[1718345559779,2.4576,3518.5,3517.9,0.14366508]
[1718345560244,2.4576,3518.5,3518.0,0.05684303]
[1718345560582,2.4576,3518.5,3518.1,0.14318058]
[1718345566023,2.4576,3518.5,3518.2,0.14311363]
[1718345566380,2.4576,3518.5,3517.8,2.13244514]
[1718345566586,2.4576,3518.5,3518.3,0.14304669]
[1718345566913,2.4576,3518.5,3517.9,1.43344514]
[1718345567111,2.4576,3518.5,3518.4,0.14297975]
[1718345567316,2.4576,3518.5,3517.9,1.43344514]
[1718345567617,2.4576,3518.5,3518.4,0.14297975]
[1718345567793,2.4576,3518.5,3517.9,1.43344514]
[1718345568000,2.4576,3518.5,3518.4,0.14297975]
[1718345568177,2.4576,3518.5,3517.9,1.43344514]
[1718345568798,2.4576,3518.5,3518.4,0.14297975]
[1718345568998,2.4576,3518.5,3517.9,1.43344514]
[1718345569315,2.4576,3518.5,3518.4,0.14297975]
[1718345569888,2.4576,3518.5,3517.9,1.43344514]
[1718345570133,2.4576,3518.5,3518.4,0.14297975]
[1718345570283,2.4576,3518.5,3517.8,0.699]
[1718345570483,2.4576,3518.5,3517.6,1.708]
[1718345570484,3.1566,3518.5,3518.4,0.14297975]
[1718345570684,3.1566,3518.5,3517.6,0.699]
[1718345570685,3.40236,3518.5,3517.6,0.699]
[1718345570907,3.1566,3518.5,3517.6,2.13244514]
[1718345571107,3.1566,3518.5,3517.7,0.14336002]
[1718345571688,2.3542,3518.4,3517.7,0.14336002]
[1718345573447,3.23826148,3519.2,3517.7,0.14336002]
[1718345573448,0.699,3517.8,3517.7,0.14336002]
[1718345573637,3.0097,3517.8,3517.7,0.14336002]
[1718345573834,3.0097,3517.8,3516.9,1.708]
[1718345574153,3.0097,3517.8,3517.0,2.66767514]
[1718345574346,3.0787,3517.5,3517.0,0.1390441]
[1718345574749,3.0787,3517.5,3516.5,2.407]
[1718345575049,3.0787,3517.5,3516.6,3.14144514]
[1718345575254,3.0787,3517.5,3516.6,3.28076635]
[1718345575847,2.3797,3517.5,3516.7,3.0]
[1718345576045,2.3797,3517.5,3516.8,2.13142178]
[1718345576245,2.3797,3517.5,3516.8,2.27060898]
[1718345584012,3.0787,3517.5,3516.8,2.27060898]
[1718345584418,3.0787,3517.5,3516.8,1.57263234]
[1718345584615,2.4684,3517.4,3516.8,1.57263234]
[1718345585622,2.3342,3517.2,3516.8,0.1391872]
[1718345585820,2.3342,3517.2,3516.3,2.407]
[1718345586021,2.3342,3517.2,3516.4,1.57322206]
[1718345586221,2.3342,3517.2,3516.5,0.99802221]
[1718345586435,2.3342,3517.2,3516.6,0.13967932]
[1718345589261,3.0332,3517.2,3516.6,0.13967932]
[1718345590028,2.3342,3517.2,3516.6,0.13967932]
[1718345591232,0.77008339,3517.1,3516.6,0.13967932]
[1718345591560,2.2637,3517.0,3516.3,0.699]
[1718345591767,2.2637,3517.0,3516.7,0.1396366]
[1718345592109,2.2637,3517.0,3516.8,0.13956959]
[1718345592263,0.7700908,3516.9,3516.8,0.13956959]
[1718345592562,0.7700908,3516.9,3515.9,0.699]
[1718345592863,0.7700908,3516.9,3516.0,1.57355086]
[1718345593168,0.699,3516.9,3516.1,0.52725509]
[1718345593324,0.77009089,3516.9,3516.1,0.52725509]
[1718345593527,2.3776,3516.8,3516.2,0.13997167]
[1718345594125,0.699,3516.7,3516.2,0.13997167]
[1718345597151,0.77009093,3516.7,3516.2,0.13997167]
[1718345597571,2.3837,3516.6,3516.2,0.13997167]
[1718345597771,0.699,3516.5,3515.8,3.0]
[1718345597977,0.699,3516.5,3515.9,0.69892]
[1718345598147,0.699,3516.5,3515.9,0.83931132]
[1718345598767,2.3837,3516.6,3515.9,0.83931132]
[1718345602746,0.7700941,3516.5,3515.9,0.83931132]
[1718345602945,2.4017,3516.4,3515.9,0.83931132]
[1718345603144,2.4017,3516.4,3515.9,0.14039132]
[1718345603381,0.77009528,3516.3,3515.9,0.14039132]
[1718345603576,0.07110075,3516.2,3515.5,0.22391226]
[1718345603744,0.77010143,3516.3,3516.0,0.14049431]
[1718345604083,0.77010143,3516.3,3516.1,0.14042728]
[1718345604478,0.77010143,3516.3,3515.5,1.6573574]
[1718345604659,0.77010143,3516.3,3516.2,0.14036026]
[1718345604865,0.77010143,3516.3,3515.6,0.53563574]
[1718345605157,0.77010143,3516.3,3515.7,0.14069543]
[1718345606157,0.07110133,3516.2,3515.7,0.14069543]
[1718345606356,0.699,3515.9,3515.7,0.14069543]
[1718345606864,2.3057,3516.0,3515.8,0.14062838]
[1718345607071,0.699,3515.9,3515.2,2.3327]
[1718345607293,0.699,3515.6,3515.3,0.14096363]
[1718345607707,0.699,3515.6,3514.7,1.708]
[1718345607889,2.3057,3515.5,3515.4,0.14089657]
[1718345608081,2.3057,3515.5,3514.8,1.43344514]
[1718345608294,2.3057,3515.5,3514.8,2.08771022]
[1718345608495,2.3057,3515.5,3515.4,0.14103627]
[1718345608679,2.3057,3515.5,3514.8,1.43344514]
[1718345608883,2.3057,3515.5,3515.4,0.14103627]
[1718345609070,2.3057,3515.5,3514.8,1.43344514]
[1718345609299,2.3057,3515.5,3514.9,0.62483667]
[1718345609607,2.3057,3515.5,3514.9,0.14137159]
[1718345609608,0.07111802,3515.4,3514.9,0.14137159]
[1718345609774,0.07111802,3515.4,3514.6,0.21910564]
[1718345609775,0.699,3515.2,3514.6,0.21910564]
[1718345609969,0.699,3515.2,3514.7,0.14150575]
[1718345610174,0.07111802,3515.4,3514.7,0.14150575]
[1718345610175,0.699,3515.0,3514.7,0.14150575]
[1718345610475,2.3339,3515.0,3514.7,0.14150575]
[1718345613997,2.3339,3515.0,3514.7,0.47756689]
[1718345615308,2.3339,3515.0,3514.7,0.14150575]
[1718345617628,0.699,3515.1,3514.7,0.14150575]
[1718345619422,2.4148,3515.2,3514.7,0.14150575]
[1718345619933,2.4148,3515.2,3514.4,3.0]
[1718345620099,2.4148,3515.2,3514.8,0.14143867]
[1718345620297,0.77012516,3515.1,3514.4,3.0]
[1718345620501,0.77012516,3515.1,3514.9,0.14137159]
[1718345620714,0.77012516,3515.1,3514.3,2.4123]
[1718345620919,0.77012516,3515.1,3515.0,0.14130452]
[1718345621111,0.77012516,3515.1,3514.3,2.4123]
[1718345621317,0.77012516,3515.1,3515.0,0.14130452]
[1718345621527,0.77012516,3515.1,3514.1,2.3344]
[1718345621528,2.4454,3515.0,3514.1,2.3344]
[1718345621713,0.699,3514.8,3514.1,2.3344]
[1718345621912,0.699,3514.8,3514.2,0.1418412]
[1718345622856,0.699,3514.6,3513.9,5.3924]
[1718345623027,0.699,3514.8,3514.0,1.57621956]
[1718345623216,0.0711321,3514.7,3514.1,0.39686196]